[Event "*** Titled Tuesday Blitz"]
[Site "Chess.com"]
[Date "2020.05.26"]
[Round "4"]
[White "Mbneu"]
[Black "mamey78"]
[Result "1-0"]
[WhiteElo "2226"]
[BlackElo "2394"]
[TimeControl "180+1"]
[EndTime "10:38:16 PDT"]
[Termination "Mbneu won by resignation"]

1. d4 {[%clk 0:03:00.9]} 1... d5 {[%clk 0:02:59.3]} 2. c4 {[%clk 0:03:00]} 2...
c6 {[%clk 0:02:58.9]} 3. Nc3 {[%clk 0:02:58.9]} 3... Nf6 {[%clk 0:02:58.9]} 4.
Nf3 {[%clk 0:02:57.8]} 4... e6 {[%clk 0:02:57.9]} 5. g3 {[%clk 0:02:56.5]} 5...
dxc4 {[%clk 0:02:57.2]} 6. a4 {[%clk 0:02:34.5]} 6... Bb4 {[%clk 0:02:41]} 7.
Bg2 {[%clk 0:02:31.8]} 7... b5 {[%clk 0:02:41.1]} 8. O-O {[%clk 0:02:14.2]} 8...
Bb7 {[%clk 0:02:40.7]} 9. Ne5 {[%clk 0:02:11.2]} 9... Nd5 {[%clk 0:02:40.1]} 10.
Qc2 {[%clk 0:02:00.7]} 10... O-O {[%clk 0:02:25.6]} 11. axb5 {[%clk 0:01:50.5]}
11... Bxc3 {[%clk 0:02:24.1]} 12. bxc3 {[%clk 0:01:49.2]} 12... cxb5 {[%clk
0:02:22.5]} 13. Ba3 {[%clk 0:01:28]} 13... Re8 {[%clk 0:02:20.6]} 14. Rfb1
{[%clk 0:01:24.8]} 14... a6 {[%clk 0:02:05.1]} 15. Nxc4 {[%clk 0:01:08.7]} 15...
Nc6 {[%clk 0:02:03.3]} 16. Nd6 {[%clk 0:01:07.4]} 16... Re7 {[%clk 0:01:52]} 17.
e4 {[%clk 0:00:59.6]} 17... Nb6 {[%clk 0:01:36.6]} 18. e5 {[%clk 0:00:52.3]}
18... Nd5 {[%clk 0:01:15.7]} 19. c4 {[%clk 0:00:37.8]} 19... Nxd4 {[%clk
0:01:03.4]} 20. Qd3 {[%clk 0:00:15.2]} 20... Nf4 {[%clk 0:00:47.7]} 21. gxf4
{[%clk 0:00:14.3]} 21... Bxg2 {[%clk 0:00:47.6]} 22. Kxg2 {[%clk 0:00:14.3]}
22... Nf5 {[%clk 0:00:43.1]} 23. cxb5 {[%clk 0:00:13.7]} 23... Rd7 {[%clk
0:00:40.4]} 24. b6 {[%clk 0:00:12.3]} 24... Qh4 {[%clk 0:00:38.4]} 25. Qf3
{[%clk 0:00:10.3]} 25... Rb8 {[%clk 0:00:32.3]} 26. Nxf5 {[%clk 0:00:10.1]}
26... exf5 {[%clk 0:00:32.9]} 27. Rd1 {[%clk 0:00:09.7]} 27... Rxd1 {[%clk
0:00:26.3]} 28. Rxd1 {[%clk 0:00:08.8]} 28... h6 {[%clk 0:00:27.2]} 29. b7
{[%clk 0:00:08.1]} 1-0

[Event "*** Titled Tuesday Blitz"]
[Site "Chess.com"]
[Date "2020.05.26"]
[Round "4"]
[White "dosto07"]
[Black "grunbergmihai"]
[Result "0-1"]
[WhiteElo "2119"]
[BlackElo "2381"]
[TimeControl "180+1"]
[EndTime "10:38:16 PDT"]
[Termination "grunbergmihai won on time"]

1. e4 {[%clk 0:03:00.9]} 1... c5 {[%clk 0:02:59.4]} 2. Nf3 {[%clk 0:02:59.7]}
2... d6 {[%clk 0:02:59]} 3. Bb5+ {[%clk 0:02:59.8]} 3... Bd7 {[%clk 0:02:50.5]}
4. Bxd7+ {[%clk 0:02:59.5]} 4... Qxd7 {[%clk 0:02:50.4]} 5. c4 {[%clk
0:02:59.7]} 5... Nc6 {[%clk 0:02:49.7]} 6. Nc3 {[%clk 0:02:58.9]} 6... g6 {[%clk
0:02:49.5]} 7. d4 {[%clk 0:02:58]} 7... cxd4 {[%clk 0:02:49.3]} 8. Nxd4 {[%clk
0:02:57.7]} 8... Bg7 {[%clk 0:02:49.7]} 9. Be3 {[%clk 0:02:57.5]} 9... Nf6
{[%clk 0:02:46.6]} 10. f3 {[%clk 0:02:57.5]} 10... O-O {[%clk 0:02:46.3]} 11.
Rc1 {[%clk 0:02:55.9]} 11... Rfc8 {[%clk 0:02:43.9]} 12. b3 {[%clk 0:02:55.2]}
12... Ne8 {[%clk 0:02:33.2]} 13. O-O {[%clk 0:02:48.9]} 13... Nc7 {[%clk
0:02:32.5]} 14. Qd2 {[%clk 0:02:31.3]} 14... Ne6 {[%clk 0:02:28.8]} 15. Nxe6
{[%clk 0:02:24.1]} 15... Qxe6 {[%clk 0:02:24.7]} 16. Nd5 {[%clk 0:02:20.4]}
16... Qd7 {[%clk 0:02:15.7]} 17. Rfd1 {[%clk 0:02:17.5]} 17... h5 {[%clk
0:02:11.8]} 18. Bh6 {[%clk 0:02:02.3]} 18... Rd8 {[%clk 0:02:04.2]} 19. Bxg7
{[%clk 0:02:01.2]} 19... Kxg7 {[%clk 0:02:05.1]} 20. Qb2+ {[%clk 0:02:00.6]}
20... Kg8 {[%clk 0:02:03.4]} 21. c5 {[%clk 0:01:55.6]} 21... Qe6 {[%clk
0:01:58.5]} 22. Nc7 {[%clk 0:01:51.9]} 22... Qe5 {[%clk 0:01:58]} 23. Qxe5
{[%clk 0:01:50]} 23... dxe5 {[%clk 0:01:56.7]} 24. Nxa8 {[%clk 0:01:49.9]} 24...
Rxa8 {[%clk 0:01:57.2]} 25. Rd7 {[%clk 0:01:46.7]} 25... Rb8 {[%clk 0:01:56.9]}
26. Rcd1 {[%clk 0:01:41.3]} 26... Kf8 {[%clk 0:01:54.5]} 27. Rc7 {[%clk
0:01:32.2]} 27... Nd4 {[%clk 0:01:53.2]} 28. Kf2 {[%clk 0:01:31]} 28... Ke8
{[%clk 0:01:50.6]} 29. Rxd4 {[%clk 0:01:17.6]} 29... exd4 {[%clk 0:01:49.7]} 30.
c6 {[%clk 0:01:16.9]} 30... bxc6 {[%clk 0:01:45.2]} 31. Rxc6 {[%clk 0:01:12]}
31... Kd7 {[%clk 0:01:37.7]} 32. Ra6 {[%clk 0:01:09.7]} 32... Rb7 {[%clk
0:01:36.8]} 33. Ke2 {[%clk 0:01:09]} 33... e5 {[%clk 0:01:34.7]} 34. g3 {[%clk
0:01:05.6]} 34... Rc7 {[%clk 0:01:28.6]} 35. Kd2 {[%clk 0:01:03.9]} 35... Ke7
{[%clk 0:01:24.1]} 36. f4 {[%clk 0:00:59.8]} 36... f5 {[%clk 0:01:12.3]} 37.
Rxg6 {[%clk 0:00:47.3]} 37... fxe4 {[%clk 0:01:11.9]} 38. fxe5 {[%clk
0:00:35.1]} 38... e3+ {[%clk 0:01:04.7]} 39. Kd3 {[%clk 0:00:32.3]} 39... Rc3+
{[%clk 0:01:03.9]} 40. Ke2 {[%clk 0:00:16.5]} 40... Rc2+ {[%clk 0:01:03.6]} 41.
Kf3 {[%clk 0:00:13.2]} 41... Rf2+ {[%clk 0:01:02.5]} 42. Ke4 {[%clk 0:00:11.5]}
42... e2 {[%clk 0:01:02.5]} 43. Kxd4 {[%clk 0:00:03.3]} 43... e1=Q {[%clk
0:01:00.3]} 44. Rg7+ {[%clk 0:00:02.1]} 44... Kf8 {[%clk 0:00:59.5]} 0-1

[Event "*** Titled Tuesday Blitz"]
[Site "Chess.com"]
[Date "2020.05.26"]
[Round "4"]
[White "CarrotsandPizza"]
[Black "Gahan-MG"]
[Result "0-1"]
[WhiteElo "2361"]
[BlackElo "2587"]
[TimeControl "180+1"]
[EndTime "10:38:17 PDT"]
[Termination "Gahan-MG won on time"]

1. e4 {[%clk 0:03:00.9]} 1... Nf6 {[%clk 0:02:59.8]} 2. e5 {[%clk 0:03:00.3]}
2... Nd5 {[%clk 0:02:59.7]} 3. d4 {[%clk 0:03:01.2]} 3... d6 {[%clk 0:02:59.8]}
4. f4 {[%clk 0:03:01.8]} 4... g6 {[%clk 0:02:58.2]} 5. Nf3 {[%clk 0:03:01.4]}
5... Bg7 {[%clk 0:02:58.1]} 6. Bd3 {[%clk 0:03:02.1]} 6... O-O {[%clk
0:02:57.5]} 7. O-O {[%clk 0:03:02.7]} 7... c5 {[%clk 0:02:56.6]} 8. Be4 {[%clk
0:02:57.6]} 8... dxe5 {[%clk 0:02:40]} 9. dxe5 {[%clk 0:02:53.5]} 9... Nb6
{[%clk 0:02:36.9]} 10. Be3 {[%clk 0:02:35]} 10... Nc4 {[%clk 0:02:30]} 11. Bc1
{[%clk 0:02:26.5]} 11... Qc7 {[%clk 0:02:25.7]} 12. b3 {[%clk 0:02:26.4]} 12...
Nb6 {[%clk 0:02:21.8]} 13. c4 {[%clk 0:02:26.1]} 13... Nc6 {[%clk 0:02:20.6]}
14. Be3 {[%clk 0:02:24.3]} 14... Bg4 {[%clk 0:02:18.5]} 15. h3 {[%clk
0:02:18.6]} 15... Bxf3 {[%clk 0:02:13.9]} 16. Qxf3 {[%clk 0:02:19.5]} 16... Rad8
{[%clk 0:01:50.4]} 17. Bxc6 {[%clk 0:02:17.8]} 17... bxc6 {[%clk 0:01:47.5]} 18.
Rd1 {[%clk 0:02:12.7]} 18... Rxd1+ {[%clk 0:01:45.2]} 19. Qxd1 {[%clk
0:02:13.6]} 19... Bxe5 {[%clk 0:01:39.2]} 20. fxe5 {[%clk 0:02:08.8]} 20... Qxe5
{[%clk 0:01:40.1]} 21. Bh6 {[%clk 0:01:10.2]} 21... Qxa1 {[%clk 0:01:37.9]} 22.
Bxf8 {[%clk 0:01:09.5]} 22... Kxf8 {[%clk 0:01:38.4]} 23. Qc2 {[%clk 0:01:04.5]}
23... Nd7 {[%clk 0:01:24.9]} 24. Kh2 {[%clk 0:00:52.5]} 24... Qe5+ {[%clk
0:01:23.6]} 25. g3 {[%clk 0:00:52.5]} 25... Nf6 {[%clk 0:01:22.5]} 26. Nc3
{[%clk 0:00:49.1]} 26... h5 {[%clk 0:01:21.2]} 27. Kg2 {[%clk 0:00:32]} 27...
Kg7 {[%clk 0:01:17.4]} 28. Qd3 {[%clk 0:00:22.7]} 28... Qd4 {[%clk 0:01:12.8]}
29. Qc2 {[%clk 0:00:16.2]} 29... h4 {[%clk 0:01:12.1]} 30. gxh4 {[%clk
0:00:15.7]} 30... Qxh4 {[%clk 0:01:11.6]} 31. Qf2 {[%clk 0:00:14.6]} 31... Qd4
{[%clk 0:01:07.4]} 32. Ne2 {[%clk 0:00:14.4]} 32... Qb2 {[%clk 0:01:02.4]} 33.
Ng3 {[%clk 0:00:14.7]} 33... Qd4 {[%clk 0:00:57.2]} 34. Ne2 {[%clk 0:00:14.1]}
34... Qd6 {[%clk 0:00:54]} 35. Ng3 {[%clk 0:00:13.8]} 35... a5 {[%clk
0:00:50.3]} 36. Kf1 {[%clk 0:00:08.4]} 36... a4 {[%clk 0:00:47.8]} 37. bxa4
{[%clk 0:00:07.6]} 37... Qd1+ {[%clk 0:00:48]} 38. Kg2 {[%clk 0:00:07.7]} 38...
Qxa4 {[%clk 0:00:48.4]} 39. Qc2 {[%clk 0:00:07.5]} 39... Qxc2+ {[%clk 0:00:48]}
0-1

[Event "*** Titled Tuesday Blitz"]
[Site "Chess.com"]
[Date "2020.05.26"]
[Round "4"]
[White "verdest"]
[Black "RobPeresian"]
[Result "1-0"]
[WhiteElo "2525"]
[BlackElo "2312"]
[TimeControl "180+1"]
[EndTime "10:38:17 PDT"]
[Termination "verdest won by resignation"]

1. d4 {[%clk 0:03:00.9]} 1... d5 {[%clk 0:02:58.5]} 2. c4 {[%clk 0:03:00.2]}
2... c6 {[%clk 0:02:58.3]} 3. Nf3 {[%clk 0:02:59.8]} 3... Nf6 {[%clk 0:02:58.4]}
4. e3 {[%clk 0:03:00.2]} 4... Bf5 {[%clk 0:02:55.6]} 5. Nc3 {[%clk 0:02:59.9]}
5... e6 {[%clk 0:02:55.2]} 6. Nh4 {[%clk 0:02:59.9]} 6... Bg6 {[%clk 0:02:54.6]}
7. Qb3 {[%clk 0:02:58.4]} 7... Qc7 {[%clk 0:02:53.9]} 8. Nxg6 {[%clk 0:02:55.6]}
8... hxg6 {[%clk 0:02:53.5]} 9. g3 {[%clk 0:02:54.4]} 9... Nbd7 {[%clk
0:02:49.3]} 10. Bd2 {[%clk 0:02:53.9]} 10... Bd6 {[%clk 0:02:40.7]} 11. Bg2
{[%clk 0:02:51.8]} 11... dxc4 {[%clk 0:02:29.8]} 12. Qxc4 {[%clk 0:02:51.4]}
12... e5 {[%clk 0:02:19.3]} 13. O-O {[%clk 0:02:42]} 13... exd4 {[%clk
0:02:16.1]} 14. exd4 {[%clk 0:02:34.1]} 14... O-O {[%clk 0:02:16]} 15. Rac1
{[%clk 0:02:28]} 15... Nb6 {[%clk 0:02:15.3]} 16. Qb3 {[%clk 0:02:24.6]} 16...
Qd7 {[%clk 0:02:09.4]} 17. Rfd1 {[%clk 0:02:20.7]} 17... Be7 {[%clk 0:02:01.9]}
18. Bg5 {[%clk 0:02:16.9]} 18... Rfd8 {[%clk 0:01:47.8]} 19. Bxf6 {[%clk
0:02:07.5]} 19... Bxf6 {[%clk 0:01:46.7]} 20. d5 {[%clk 0:02:07.8]} 20... Nxd5
{[%clk 0:01:43.2]} 21. Nxd5 {[%clk 0:02:02]} 21... cxd5 {[%clk 0:01:43.4]} 22.
Bxd5 {[%clk 0:02:02.5]} 22... Qe7 {[%clk 0:01:26.5]} 23. Re1 {[%clk 0:01:54]}
23... Qd7 {[%clk 0:01:04.1]} 24. Rcd1 {[%clk 0:01:50.2]} 24... Qc7 {[%clk
0:01:02.7]} 25. Qxb7 {[%clk 0:01:33.9]} 25... Qxb7 {[%clk 0:01:01.7]} 26. Bxb7
{[%clk 0:01:34.8]} 26... Rxd1 {[%clk 0:00:59.5]} 27. Rxd1 {[%clk 0:01:35.7]}
27... Rb8 {[%clk 0:00:59.7]} 28. Rd7 {[%clk 0:01:35.5]} 28... Bxb2 {[%clk
0:00:58.9]} 29. Bd5 {[%clk 0:01:35]} 29... a5 {[%clk 0:00:52.9]} 30. Rxf7 {[%clk
0:01:19.7]} 30... Kh7 {[%clk 0:00:50.6]} 31. Kg2 {[%clk 0:01:15.9]} 31... Bd4
{[%clk 0:00:42.6]} 32. h4 {[%clk 0:01:09.9]} 32... Rb2 {[%clk 0:00:39.9]} 33. a4
{[%clk 0:01:05.8]} 33... Rd2 {[%clk 0:00:26.8]} 34. Be4 {[%clk 0:01:03.9]} 34...
Kh6 {[%clk 0:00:20.4]} 35. Rf8 {[%clk 0:01:03.5]} 35... Kh7 {[%clk 0:00:16]} 36.
h5 {[%clk 0:01:03.3]} 36... Bf6 {[%clk 0:00:14.3]} 37. hxg6+ {[%clk 0:00:58.2]}
37... Kh6 {[%clk 0:00:14.4]} 38. Kf3 {[%clk 0:00:48.3]} 38... Ra2 {[%clk
0:00:13.7]} 39. Kg4 {[%clk 0:00:44.9]} 1-0

[Event "*** Titled Tuesday Blitz"]
[Site "Chess.com"]
[Date "2020.05.26"]
[Round "4"]
[White "kingmonkey2006"]
[Black "DishonorOnYourCow"]
[Result "1-0"]
[WhiteElo "2573"]
[BlackElo "2310"]
[TimeControl "180+1"]
[EndTime "10:38:17 PDT"]
[Termination "kingmonkey2006 won on time"]

1. b3 {[%clk 0:03:00.8]} 1... Nf6 {[%clk 0:02:58.6]} 2. Bb2 {[%clk 0:03:01.7]}
2... g6 {[%clk 0:02:56.8]} 3. e4 {[%clk 0:03:01.5]} 3... d6 {[%clk 0:02:46.1]}
4. Nf3 {[%clk 0:03:00.4]} 4... Bg7 {[%clk 0:02:45.4]} 5. d3 {[%clk 0:02:59.5]}
5... c5 {[%clk 0:02:45.1]} 6. Nbd2 {[%clk 0:02:59.4]} 6... Nc6 {[%clk
0:02:44.4]} 7. g3 {[%clk 0:02:56.2]} 7... O-O {[%clk 0:02:44.1]} 8. Bg2 {[%clk
0:02:56.9]} 8... a6 {[%clk 0:02:35.9]} 9. O-O {[%clk 0:02:57]} 9... b5 {[%clk
0:02:35.5]} 10. e5 {[%clk 0:02:54.6]} 10... Nd7 {[%clk 0:02:19.1]} 11. d4 {[%clk
0:02:51.6]} 11... Bb7 {[%clk 0:02:11.1]} 12. e6 {[%clk 0:02:33]} 12... fxe6
{[%clk 0:01:59.1]} 13. Ng5 {[%clk 0:02:32.5]} 13... cxd4 {[%clk 0:01:34.7]} 14.
Nxe6 {[%clk 0:02:31]} 14... Qc8 {[%clk 0:01:33.7]} 15. Nxf8 {[%clk 0:02:30.9]}
15... Qxf8 {[%clk 0:01:34.6]} 16. Qg4 {[%clk 0:02:27.9]} 16... Nc5 {[%clk
0:01:15.1]} 17. b4 {[%clk 0:01:25.3]} 17... Nxb4 {[%clk 0:01:03.8]} 18. Bxb7
{[%clk 0:01:17.2]} 18... Nxb7 {[%clk 0:01:01.2]} 19. Bxd4 {[%clk 0:01:17.7]}
19... Nxc2 {[%clk 0:00:54.1]} 20. Bxg7 {[%clk 0:01:16.7]} 20... Qxg7 {[%clk
0:00:50.6]} 21. Rac1 {[%clk 0:01:16.4]} 21... Nd4 {[%clk 0:00:46.7]} 22. Qe4
{[%clk 0:01:12]} 22... Rb8 {[%clk 0:00:34]} 23. Rc7 {[%clk 0:01:09.6]} 23... Nc5
{[%clk 0:00:21.6]} 24. Qd5+ {[%clk 0:01:04]} 24... Kh8 {[%clk 0:00:19]} 25. Re1
{[%clk 0:01:01.3]} 25... Re8 {[%clk 0:00:16.5]} 26. Rexe7 {[%clk 0:00:55.1]}
26... Rxe7 {[%clk 0:00:09.5]} 27. Qa8+ {[%clk 0:00:55.3]} 27... Qg8 {[%clk
0:00:08.6]} 28. Qxg8+ {[%clk 0:00:55.5]} 28... Kxg8 {[%clk 0:00:08.4]} 29. Rxe7
{[%clk 0:00:55.5]} 29... Na4 {[%clk 0:00:05.5]} 30. Ne4 {[%clk 0:00:49.1]} 30...
Ne2+ {[%clk 0:00:04.5]} 31. Kg2 {[%clk 0:00:48.3]} 31... Nec3 {[%clk 0:00:05.1]}
32. a3 {[%clk 0:00:46.6]} 32... Nb1 {[%clk 0:00:04.6]} 33. Ra7 {[%clk
0:00:44.1]} 33... Nxa3 {[%clk 0:00:03]} 34. Rxa6 {[%clk 0:00:44.6]} 34... Nc2
{[%clk 0:00:02.5]} 35. Rc6 {[%clk 0:00:41.5]} 1-0

[Event "*** Titled Tuesday Blitz"]
[Site "Chess.com"]
[Date "2020.05.26"]
[Round "4"]
[White "KingChess345"]
[Black "HunterBRR"]
[Result "0-1"]
[WhiteElo "2183"]
[BlackElo "1960"]
[TimeControl "180+1"]
[EndTime "10:38:17 PDT"]
[Termination "HunterBRR won on time"]

1. d4 {[%clk 0:03:00.9]} 1... Nf6 {[%clk 0:02:57.8]} 2. Nf3 {[%clk 0:03:01.8]}
2... g6 {[%clk 0:02:57.6]} 3. g3 {[%clk 0:03:02.7]} 3... Bg7 {[%clk 0:02:57.5]}
4. Bg2 {[%clk 0:03:03.6]} 4... O-O {[%clk 0:02:57.2]} 5. O-O {[%clk 0:03:04.5]}
5... d6 {[%clk 0:02:56.6]} 6. c4 {[%clk 0:03:05.3]} 6... Nc6 {[%clk 0:02:55.9]}
7. Nc3 {[%clk 0:03:06]} 7... Bf5 {[%clk 0:02:55.8]} 8. b3 {[%clk 0:02:59]} 8...
e5 {[%clk 0:02:48.6]} 9. Bb2 {[%clk 0:02:49]} 9... e4 {[%clk 0:02:35.4]} 10. Nd2
{[%clk 0:02:38.8]} 10... e3 {[%clk 0:02:28.5]} 11. fxe3 {[%clk 0:02:37.1]} 11...
Re8 {[%clk 0:02:29]} 12. e4 {[%clk 0:02:32]} 12... Bd7 {[%clk 0:02:24.2]} 13. e3
{[%clk 0:02:26.2]} 13... Ng4 {[%clk 0:02:20]} 14. Qf3 {[%clk 0:02:22.1]} 14...
Nxe3 {[%clk 0:02:16.6]} 15. Nd5 {[%clk 0:01:35.3]} 15... Nxf1 {[%clk 0:02:08.8]}
16. Rxf1 {[%clk 0:01:36.2]} 16... Be6 {[%clk 0:02:02.6]} 17. Qf2 {[%clk
0:01:08.7]} 17... a5 {[%clk 0:01:50.7]} 18. Nf4 {[%clk 0:01:06.2]} 18... Bd7
{[%clk 0:01:26.5]} 19. h4 {[%clk 0:01:03.3]} 19... a4 {[%clk 0:01:21.2]} 20. h5
{[%clk 0:00:34.7]} 20... axb3 {[%clk 0:01:20.3]} 21. axb3 {[%clk 0:00:34.1]}
21... Ra2 {[%clk 0:01:19.4]} 22. Nf3 {[%clk 0:00:34.4]} 22... g5 {[%clk
0:01:08.6]} 23. h6 {[%clk 0:00:11.7]} 23... gxf4 {[%clk 0:00:45.8]} 24. hxg7
{[%clk 0:00:10.7]} 24... fxg3 {[%clk 0:00:45.9]} 25. Qd2 {[%clk 0:00:09.4]}
25... Rxe4 {[%clk 0:00:35]} 26. Ng5 {[%clk 0:00:08.4]} 26... Rxb2 {[%clk
0:00:25.1]} 27. Qxb2 {[%clk 0:00:07]} 27... Qxg5 {[%clk 0:00:24.9]} 28. Bxe4
{[%clk 0:00:05.8]} 28... Qe3+ {[%clk 0:00:20.1]} 0-1

[Event "*** Titled Tuesday Blitz"]
[Site "Chess.com"]
[Date "2020.05.26"]
[Round "4"]
[White "RU_B9"]
[Black "cukin84"]
[Result "0-1"]
[WhiteElo "1836"]
[BlackElo "2172"]
[TimeControl "180+1"]
[EndTime "10:38:17 PDT"]
[Termination "cukin84 won on time"]

1. c4 {[%clk 0:03:00.9]} 1... f5 {[%clk 0:02:59.4]} 2. Nf3 {[%clk 0:02:56.9]}
2... Nf6 {[%clk 0:02:59]} 3. Nc3 {[%clk 0:02:56.7]} 3... g6 {[%clk 0:02:58.8]}
4. d3 {[%clk 0:02:56]} 4... Bg7 {[%clk 0:02:58.2]} 5. e4 {[%clk 0:02:55.9]} 5...
d6 {[%clk 0:02:56.4]} 6. Be2 {[%clk 0:02:41]} 6... O-O {[%clk 0:02:55]} 7. h4
{[%clk 0:02:38.7]} 7... e5 {[%clk 0:02:52.7]} 8. exf5 {[%clk 0:02:29.5]} 8...
gxf5 {[%clk 0:02:47.5]} 9. Bg5 {[%clk 0:02:19.7]} 9... Qe8 {[%clk 0:02:40.2]}
10. Qd2 {[%clk 0:02:13.8]} 10... Be6 {[%clk 0:02:28]} 11. O-O-O {[%clk
0:01:53.6]} 11... Nbd7 {[%clk 0:02:27.3]} 12. Bxf6 {[%clk 0:01:37.1]} 12... Nxf6
{[%clk 0:02:25.8]} 13. Ng5 {[%clk 0:01:33]} 13... Kh8 {[%clk 0:02:14]} 14. Kb1
{[%clk 0:01:31.4]} 14... Bg8 {[%clk 0:02:13.4]} 15. h5 {[%clk 0:01:24.4]} 15...
h6 {[%clk 0:02:07.9]} 16. g4 {[%clk 0:01:10.3]} 16... Nxg4 {[%clk 0:01:51.7]}
17. Bxg4 {[%clk 0:00:56.1]} 17... fxg4 {[%clk 0:01:52.6]} 18. Nge4 {[%clk
0:00:50.8]} 18... Bh7 {[%clk 0:01:40.6]} 19. Rdg1 {[%clk 0:00:48.5]} 19... Bf5
{[%clk 0:01:38.1]} 20. Nd5 {[%clk 0:00:46.3]} 20... Qf7 {[%clk 0:01:23.6]} 21.
Rg2 {[%clk 0:00:39.4]} 21... c6 {[%clk 0:01:14]} 22. Ne3 {[%clk 0:00:38.7]}
22... Bxe4 {[%clk 0:01:10.1]} 23. dxe4 {[%clk 0:00:33.2]} 23... Qf4 {[%clk
0:00:59.6]} 24. Rxg4 {[%clk 0:00:26.9]} 24... Qxf2 {[%clk 0:00:59.1]} 25. Qxf2
{[%clk 0:00:26]} 25... Rxf2 {[%clk 0:00:59.1]} 26. Rhg1 {[%clk 0:00:25.6]} 26...
Bf6 {[%clk 0:00:53.9]} 27. Nf5 {[%clk 0:00:22.2]} 27... Bg5 {[%clk 0:00:52.8]}
28. Nxd6 {[%clk 0:00:13.7]} 28... Rd8 {[%clk 0:00:47.8]} 29. Rd1 {[%clk
0:00:12.7]} 29... Kh7 {[%clk 0:00:41.4]} 30. a3 {[%clk 0:00:10.1]} 30... Bd2
{[%clk 0:00:35.8]} 31. c5 {[%clk 0:00:08.4]} 31... Be3 {[%clk 0:00:34.4]} 32.
Rg6 {[%clk 0:00:05]} 32... Bd4 {[%clk 0:00:31.6]} 0-1

[Event "*** Titled Tuesday Blitz"]
[Site "Chess.com"]
[Date "2020.05.26"]
[Round "4"]
[White "czasnaszachy"]
[Black "latixxa"]
[Result "0-1"]
[WhiteElo "2358"]
[BlackElo "2129"]
[TimeControl "180+1"]
[EndTime "10:38:18 PDT"]
[Termination "latixxa won on time"]

1. d4 {[%clk 0:03:00.9]} 1... Nf6 {[%clk 0:02:59.8]} 2. c4 {[%clk 0:03:00.5]}
2... c5 {[%clk 0:02:59.4]} 3. d5 {[%clk 0:03:00.1]} 3... g6 {[%clk 0:02:59.3]}
4. Nc3 {[%clk 0:02:59]} 4... Bg7 {[%clk 0:02:59.4]} 5. e4 {[%clk 0:02:58.9]}
5... d6 {[%clk 0:02:59.3]} 6. f3 {[%clk 0:02:54.6]} 6... O-O {[%clk 0:02:59]} 7.
Bg5 {[%clk 0:02:54.2]} 7... e6 {[%clk 0:02:54.1]} 8. Qd2 {[%clk 0:02:47.6]} 8...
a6 {[%clk 0:02:48.3]} 9. a4 {[%clk 0:02:26.4]} 9... Qc7 {[%clk 0:02:30.9]} 10.
Nge2 {[%clk 0:01:53.7]} 10... Nbd7 {[%clk 0:02:27.6]} 11. dxe6 {[%clk 0:01:36]}
11... fxe6 {[%clk 0:02:26.1]} 12. Bf4 {[%clk 0:01:35.7]} 12... e5 {[%clk
0:02:23.6]} 13. Bh6 {[%clk 0:01:35.8]} 13... Nb6 {[%clk 0:02:15.8]} 14. Nd5
{[%clk 0:01:28]} 14... Nfxd5 {[%clk 0:02:12.2]} 15. cxd5 {[%clk 0:01:25.8]}
15... Nc4 {[%clk 0:02:04.8]} 16. Qc2 {[%clk 0:00:52.5]} 16... Bxh6 {[%clk
0:01:56.3]} 17. Qxc4 {[%clk 0:00:51.6]} 17... Bd7 {[%clk 0:01:56]} 18. Nc3
{[%clk 0:00:45.1]} 18... b5 {[%clk 0:01:52]} 19. Qb3 {[%clk 0:00:39.6]} 19... c4
{[%clk 0:01:42.3]} 20. Qc2 {[%clk 0:00:35.2]} 20... b4 {[%clk 0:01:41]} 21. Nd1
{[%clk 0:00:32.3]} 21... Rac8 {[%clk 0:01:33.5]} 22. Be2 {[%clk 0:00:28.7]}
22... a5 {[%clk 0:01:32]} 23. O-O {[%clk 0:00:26.6]} 23... Bf4 {[%clk
0:01:20.3]} 24. g3 {[%clk 0:00:24.4]} 24... Bh6 {[%clk 0:01:18.8]} 25. Kg2
{[%clk 0:00:22.7]} 25... Qb6 {[%clk 0:01:02.4]} 26. Bxc4 {[%clk 0:00:14.9]}
26... Qd4 {[%clk 0:00:57.2]} 27. b3 {[%clk 0:00:07.1]} 27... Qxa1 {[%clk
0:00:53.6]} 28. Nb2 {[%clk 0:00:06.9]} 28... Qa2 {[%clk 0:00:48.2]} 29. Rf2
{[%clk 0:00:05.7]} 29... Be3 {[%clk 0:00:44.1]} 30. Re2 {[%clk 0:00:05.6]} 30...
Bd4 {[%clk 0:00:43.3]} 31. Qc1 {[%clk 0:00:04.3]} 31... Rxc4 {[%clk 0:00:34.7]}
32. bxc4 {[%clk 0:00:03.1]} 32... Bxa4 {[%clk 0:00:33.7]} 0-1

[Event "*** Titled Tuesday Blitz"]
[Site "Chess.com"]
[Date "2020.05.26"]
[Round "4"]
[White "IriBu"]
[Black "Kate1606"]
[Result "1-0"]
[WhiteElo "2543"]
[BlackElo "1525"]
[TimeControl "180+1"]
[EndTime "10:38:18 PDT"]
[Termination "IriBu won by resignation"]

1. e4 {[%clk 0:03:00.9]} 1... c5 {[%clk 0:02:58.7]} 2. Be2 {[%clk 0:02:59.9]}
2... g6 {[%clk 0:02:57]} 3. f4 {[%clk 0:02:59.7]} 3... Bg7 {[%clk 0:02:55.9]} 4.
Nf3 {[%clk 0:02:59.8]} 4... Nc6 {[%clk 0:02:56]} 5. c3 {[%clk 0:02:58.8]} 5...
e6 {[%clk 0:02:56.3]} 6. O-O {[%clk 0:02:57.8]} 6... Nge7 {[%clk 0:02:55.4]} 7.
d4 {[%clk 0:02:58.1]} 7... cxd4 {[%clk 0:02:55.7]} 8. cxd4 {[%clk 0:02:58.2]}
8... d5 {[%clk 0:02:56.4]} 9. e5 {[%clk 0:02:56.7]} 9... O-O {[%clk 0:02:55.8]}
10. Be3 {[%clk 0:02:55.1]} 10... Nf5 {[%clk 0:02:53.9]} 11. Bf2 {[%clk
0:02:54.8]} 11... Qb6 {[%clk 0:02:54.2]} 12. Qd2 {[%clk 0:02:45.4]} 12... Bd7
{[%clk 0:02:51.8]} 13. Nc3 {[%clk 0:02:40.9]} 13... Rac8 {[%clk 0:02:49.1]} 14.
g4 {[%clk 0:02:32.5]} 14... Nfe7 {[%clk 0:02:47.5]} 15. Kg2 {[%clk 0:02:24.7]}
15... Na5 {[%clk 0:02:43.8]} 16. b3 {[%clk 0:02:20.6]} 16... Nac6 {[%clk
0:02:40.7]} 17. Bh4 {[%clk 0:02:10.8]} 17... Rfe8 {[%clk 0:02:21.2]} 18. Bf6
{[%clk 0:02:07.9]} 18... Kh8 {[%clk 0:01:56.5]} 19. Na4 {[%clk 0:02:06.8]} 19...
Qb4 {[%clk 0:01:50.6]} 20. Qe3 {[%clk 0:02:05.6]} 20... b6 {[%clk 0:01:27.3]}
21. a3 {[%clk 0:02:00.4]} 21... Qa5 {[%clk 0:01:22]} 22. Rfc1 {[%clk 0:01:51.9]}
22... Bxf6 {[%clk 0:01:19.3]} 23. exf6 {[%clk 0:01:51.4]} 23... Ng8 {[%clk
0:01:19.9]} 24. g5 {[%clk 0:01:45.6]} 24... Nb8 {[%clk 0:01:20]} 25. Nc3 {[%clk
0:01:41.2]} 25... b5 {[%clk 0:01:13.5]} 26. Ne5 {[%clk 0:01:40.5]} 26... Rf8
{[%clk 0:01:07]} 27. b4 {[%clk 0:01:21.9]} 27... Qb6 {[%clk 0:01:03.8]} 28. h4
{[%clk 0:01:17.1]} 28... Qb7 {[%clk 0:00:57.3]} 29. h5 {[%clk 0:01:15.1]} 29...
Nc6 {[%clk 0:00:52.1]} 30. hxg6 {[%clk 0:01:11.1]} 30... fxg6 {[%clk 0:00:48.2]}
31. Rh1 {[%clk 0:01:09.4]} 31... Nxe5 {[%clk 0:00:42.2]} 32. fxe5 {[%clk
0:01:02.9]} 32... Rf7 {[%clk 0:00:41.3]} 33. Rh3 {[%clk 0:00:59.6]} 33... Qc7
{[%clk 0:00:35.7]} 34. Qd3 {[%clk 0:00:56.4]} 34... Qxc3 {[%clk 0:00:35.4]} 35.
Qxc3 {[%clk 0:00:56.2]} 35... Rxc3 {[%clk 0:00:30]} 36. Rxc3 {[%clk 0:00:55.9]}
36... h6 {[%clk 0:00:25.7]} 37. Rh1 {[%clk 0:00:46.3]} 37... h5 {[%clk
0:00:25.4]} 38. Rch3 {[%clk 0:00:42.4]} 38... Rh7 {[%clk 0:00:24.1]} 39. Rh4
{[%clk 0:00:40.6]} 39... a6 {[%clk 0:00:19.7]} 40. Bd3 {[%clk 0:00:40.5]} 40...
Bc6 {[%clk 0:00:18.6]} 41. Bxg6 {[%clk 0:00:38.6]} 41... Rc7 {[%clk 0:00:17.8]}
42. Rxh5+ {[%clk 0:00:38.2]} 1-0